[Event "FIDE World Rapid Chess Championship 2021"]
[White "Duda, Jan-Krzysztof"]
[Black "Cheparinov, Ivan"]
[WhiteFideId "1170546"]
[BlackFideId "2905540"]
[WhiteElo "2801"]
[BlackElo "2621"]
[Result "1/2-1/2"]
[Round "10"]
[TimeControl "900+10"]
[Date "2021.12.28"]
[WhiteClock "0:00:55"]
[BlackClock "0:00:32"]

1. d4 {[%clk 0:15:00]}  Nf6 {[%clk 0:15:00]} 2. c4 {[%clk 0:15:00]}  e6 {[%clk 0:15:00]} 3. Nf3 {[%clk 0:15:00]}  d5 {[%clk 0:15:00]} 4. Nc3 {[%clk 0:15:27]}  Be7 {[%clk 0:15:46]} 5. Bf4 {[%clk 0:15:27]}  O-O {[%clk 0:15:46]} 6. e3 {[%clk 0:15:27]}  Nbd7 {[%clk 0:15:46]} 7. c5 {[%clk 0:15:27]}  c6 {[%clk 0:15:46]} 8. Bd3 {[%clk 0:15:27]}  b6 {[%clk 0:15:46]} 9. b4 {[%clk 0:15:27]}  a5 {[%clk 0:15:46]} 10. a3 {[%clk 0:15:27]}  Ba6 {[%clk 0:15:46]} 11. O-O {[%clk 0:15:27]}  Qc8 {[%clk 0:15:46]} 12. Rb1 {[%clk 0:15:27]}  axb4 {[%clk 0:14:38]} 13. axb4 {[%clk 0:11:10]}  Bxd3 {[%clk 0:14:38]} 14. Qxd3 {[%clk 0:11:10]}  Qb7 {[%clk 0:14:38]} 15. Ne1 {[%clk 0:11:18]}  Rfc8 {[%clk 0:14:02]} 16. Qc2 {[%clk 0:11:18]}  Nh5 {[%clk 0:12:17]} 17. Nd3 {[%clk 0:05:43]}  Nxf4 {[%clk 0:12:17]} 18. exf4 {[%clk 0:05:43]}  Ra3 {[%clk 0:11:24]} 19. Rfd1 {[%clk 0:05:39]}  Rca8 {[%clk 0:08:23]} 20. g3 {[%clk 0:05:39]}  Bf6 {[%clk 0:06:19]} 21. Ne5 {[%clk 0:03:36]}  Nxe5 {[%clk 0:06:19]} 22. fxe5 {[%clk 0:03:36]}  Be7 {[%clk 0:06:19]} 23. Rb2 {[%clk 0:03:36]}  f6 {[%clk 0:04:20]} 24. Ne2 {[%clk 0:03:22]}  b5 {[%clk 0:02:40]} 25. Nf4 {[%clk 0:02:45]}  Qd7 {[%clk 0:02:40]} 26. Qe2 {[%clk 0:02:45]}  f5 {[%clk 0:02:40]} 27. h4 {[%clk 0:02:45]}  g6 {[%clk 0:02:40]} 28. Kg2 {[%clk 0:01:01]}  Bf8 {[%clk 0:02:39]} 29. Rd3 {[%clk 0:01:01]}  Bh6 {[%clk 0:02:39]} 30. Rxa3 {[%clk 0:01:01]}  Rxa3 {[%clk 0:01:19]} 31. Ra2 {[%clk 0:01:29]}  Rxa2 {[%clk 0:01:19]} 32. Qxa2 {[%clk 0:01:29]}  Bxf4 {[%clk 0:01:19]} 33. Qa8+ {[%clk 0:01:29]}  Kg7 {[%clk 0:01:19]} 34. gxf4 {[%clk 0:01:29]}  h5 {[%clk 0:01:19]} 35. Qb8 {[%clk 0:01:29]}  Kh7 {[%clk 0:00:32]} 36. Qf8 {[%clk 0:00:55]}  Qa7 {[%clk 0:00:32]} 37. Qe8 {[%clk 0:00:55]}  Qa1 {[%clk 0:00:32]} 38. Qf7+ {[%clk 0:00:55]}  Kh8 {[%clk 0:00:32]} 39. Qxg6 {[%clk 0:00:55]}  Qg1+ {[%clk 0:00:32]} 40. Kxg1 {[%clk 0:00:55]} 1/2-1/2


[Site "http://www.Chess.com"]

[Event "FIDE World Rapid Chess Championship 2021"]
[White "Amin, Bassem"]
[Black "Caruana, Fabiano"]
[WhiteFideId "10601457"]
[BlackFideId "2020009"]
[WhiteElo "2614"]
[BlackElo "2770"]
[Result "0-1"]
[Round "10"]
[TimeControl "900+10"]
[Date "2021.12.28"]
[WhiteClock "0:00:20"]
[BlackClock "0:04:20"]

1. e4 {[%clk 0:15:00]}  e6 {[%clk 0:15:52]} 2. d3 {[%clk 0:14:58]}  d5 {[%clk 0:15:52]} 3. Nd2 {[%clk 0:14:58]}  Nf6 {[%clk 0:15:52]} 4. Ngf3 {[%clk 0:14:58]}  Nc6 {[%clk 0:15:52]} 5. c3 {[%clk 0:14:58]}  Bd6 {[%clk 0:15:52]} 6. Be2 {[%clk 0:14:58]}  O-O {[%clk 0:15:52]} 7. O-O {[%clk 0:14:58]}  e5 {[%clk 0:15:52]} 8. exd5 {[%clk 0:14:58]}  Nxd5 {[%clk 0:15:52]} 9. Nc4 {[%clk 0:14:58]}  Re8 {[%clk 0:15:52]} 10. a4 {[%clk 0:14:58]}  Bf8 {[%clk 0:13:29]} 11. a5 {[%clk 0:14:36]}  a6 {[%clk 0:13:29]} 12. Re1 {[%clk 0:14:36]}  f6 {[%clk 0:13:29]} 13. Bf1 {[%clk 0:14:36]}  Bg4 {[%clk 0:13:28]} 14. h3 {[%clk 0:14:36]}  Bh5 {[%clk 0:13:28]} 15. g3 {[%clk 0:13:43]}  Qd7 {[%clk 0:13:25]} 16. Bg2 {[%clk 0:13:43]}  Kh8 {[%clk 0:13:25]} 17. Qb3 {[%clk 0:13:38]}  Bf7 {[%clk 0:12:18]} 18. Nfd2 {[%clk 0:13:38]}  Rab8 {[%clk 0:12:18]} 19. Ne4 {[%clk 0:09:44]}  h6 {[%clk 0:12:01]} 20. g4 {[%clk 0:09:44]}  Nf4 {[%clk 0:12:01]} 21. Bxf4 {[%clk 0:09:44]}  exf4 {[%clk 0:12:01]} 22. Qc2 {[%clk 0:09:02]}  Rbd8 {[%clk 0:10:34]} 23. Bf1 {[%clk 0:09:02]}  f5 {[%clk 0:10:34]} 24. gxf5 {[%clk 0:09:02]}  Qxf5 {[%clk 0:10:34]} 25. f3 {[%clk 0:09:02]}  Be7 {[%clk 0:10:37]} 26. b4 {[%clk 0:02:56]}  Bh4 {[%clk 0:08:41]} 27. Red1 {[%clk 0:02:56]}  Bh5 {[%clk 0:08:41]} 28. Bg2 {[%clk 0:02:56]}  Ne7 {[%clk 0:08:41]} 29. Rd2 {[%clk 0:02:18]}  Nd5 {[%clk 0:07:31]} 30. Re2 {[%clk 0:02:18]}  Re6 {[%clk 0:07:31]} 31. Rf1 {[%clk 0:02:18]}  b5 {[%clk 0:06:40]} 32. axb6 {[%clk 0:01:49]}  cxb6 {[%clk 0:06:40]} 33. d4 {[%clk 0:01:49]}  b5 {[%clk 0:06:40]} 34. Nc5 {[%clk 0:01:49]}  Qxc2 {[%clk 0:05:22]} 35. Rxc2 {[%clk 0:01:19]}  Ree8 {[%clk 0:05:22]} 36. Ne5 {[%clk 0:01:19]}  Ne3 {[%clk 0:05:22]} 37. Ra2 {[%clk 0:01:19]}  Bf6 {[%clk 0:05:22]} 38. Ned3 {[%clk 0:00:27]}  Nxf1 {[%clk 0:04:13]} 39. Kxf1 {[%clk 0:00:27]}  Bf7 {[%clk 0:04:13]} 40. Rxa6 {[%clk 0:00:27]}  Bc4 {[%clk 0:04:13]} 41. Kf2 {[%clk 0:00:27]}  Bh4+ {[%clk 0:04:20]} 42. Kg1 {[%clk 0:00:20]}  Re3 {[%clk 0:04:20]} 43. Nxf4 {[%clk 0:00:20]}  Bg3 {[%clk 0:04:20]} 44. Ng6+ {[%clk 0:00:20]}  Kh7 {[%clk 0:04:20]} 45. Bf1 {[%clk 0:00:20]}  Re1 {[%clk 0:04:20]} 46. Kg2 {[%clk 0:00:20]}  Rxf1 {[%clk 0:04:20]} 47. Ne6 {[%clk 0:00:20]}  Bxe6 {[%clk 0:04:20]} 48. Kxf1 {[%clk 0:00:20]}  Bxh3+ {[%clk 0:04:20]} 49. Ke2 {[%clk 0:00:20]} 0-1


[Site "http://www.Chess.com"]

[Event "FIDE World Rapid Chess Championship 2021"]
[White "Hovhannisyan, Robert"]
[Black "Jobava, Baadur"]
[WhiteFideId "13302507"]
[BlackFideId "13601520"]
[WhiteElo "2613"]
[BlackElo "2679"]
[Result "1/2-1/2"]
[Round "10"]
[TimeControl "900+10"]
[Date "2021.12.28"]
[WhiteClock "0:01:38"]
[BlackClock "0:02:25"]

1. e4 {[%clk 0:15:00]}  c6 {[%clk 0:15:00]} 2. d4 {[%clk 0:15:00]}  d5 {[%clk 0:15:19]} 3. e5 {[%clk 0:15:23]}  Bf5 {[%clk 0:15:19]} 4. Nf3 {[%clk 0:15:23]}  e6 {[%clk 0:15:19]} 5. Be2 {[%clk 0:15:23]}  Nd7 {[%clk 0:15:19]} 6. O-O {[%clk 0:15:23]}  h6 {[%clk 0:15:19]} 7. c3 {[%clk 0:15:23]}  Ne7 {[%clk 0:15:19]} 8. a4 {[%clk 0:15:23]}  a5 {[%clk 0:15:19]} 9. Na3 {[%clk 0:15:23]}  Bh7 {[%clk 0:15:19]} 10. Nc2 {[%clk 0:13:48]}  Ng6 {[%clk 0:13:47]} 11. g3 {[%clk 0:13:48]}  Be7 {[%clk 0:13:47]} 12. h4 {[%clk 0:13:48]}  O-O {[%clk 0:13:47]} 13. h5 {[%clk 0:12:49]}  Nh8 {[%clk 0:13:35]} 14. Bd3 {[%clk 0:12:49]}  Bxd3 {[%clk 0:13:35]} 15. Qxd3 {[%clk 0:12:49]}  Qe8 {[%clk 0:13:35]} 16. Kg2 {[%clk 0:12:49]}  f6 {[%clk 0:13:35]} 17. Rh1 {[%clk 0:11:55]}  Nf7 {[%clk 0:13:06]} 18. Bf4 {[%clk 0:11:55]}  fxe5 {[%clk 0:11:10]} 19. Nxe5 {[%clk 0:10:15]}  Nfxe5 {[%clk 0:11:10]} 20. Bxe5 {[%clk 0:08:01]}  Rf5 {[%clk 0:10:53]} 21. Qe2 {[%clk 0:08:01]}  Ra6 {[%clk 0:10:18]} 22. Ne3 {[%clk 0:07:39]}  Rf7 {[%clk 0:10:18]} 23. f4 {[%clk 0:07:39]}  c5 {[%clk 0:07:26]} 24. Rhf1 {[%clk 0:06:22]}  Rb6 {[%clk 0:07:26]} 25. Rf2 {[%clk 0:06:22]}  Nxe5 {[%clk 0:07:08]} 26. dxe5 {[%clk 0:05:10]}  c4 {[%clk 0:07:08]} 27. f5 {[%clk 0:05:10]}  Bc5 {[%clk 0:07:08]} 28. f6 {[%clk 0:05:10]}  Qc6 {[%clk 0:05:49]} 29. Kh3 {[%clk 0:03:46]}  d4 {[%clk 0:04:30]} 30. Nxc4 {[%clk 0:03:32]}  d3 {[%clk 0:04:30]} 31. Qxd3 {[%clk 0:03:32]}  Bxf2 {[%clk 0:04:30]} 32. Qd8+ {[%clk 0:01:38]}  Kh7 {[%clk 0:03:31]} 33. Qd3+ {[%clk 0:01:38]}  Kg8 {[%clk 0:03:31]} 34. Qd8+ {[%clk 0:01:38]}  Rf8 {[%clk 0:03:31]} 35. Qe7 {[%clk 0:01:38]}  Rf7 {[%clk 0:02:25]} 1/2-1/2


[Site "http://www.Chess.com"]

[Event "FIDE World Rapid Chess Championship 2021"]
[White "Van Foreest, Jorden"]
[Black "Aronian, Levon"]
[WhiteFideId "1039784"]
[BlackFideId "13300474"]
[WhiteElo "2563"]
[BlackElo "2728"]
[Result "0-1"]
[Round "10"]
[TimeControl "900+10"]
[Date "2021.12.28"]
[WhiteClock "0:01:55"]
[BlackClock "0:02:08"]

1. e4 {[%clk 0:14:51]}  e5 {[%clk 0:15:06]} 2. Nf3 {[%clk 0:14:51]}  Nc6 {[%clk 0:15:06]} 3. d4 {[%clk 0:14:51]}  exd4 {[%clk 0:15:06]} 4. Nxd4 {[%clk 0:14:51]}  Nf6 {[%clk 0:15:06]} 5. Nxc6 {[%clk 0:14:51]}  bxc6 {[%clk 0:15:06]} 6. Nd2 {[%clk 0:14:51]}  d6 {[%clk 0:15:06]} 7. Bc4 {[%clk 0:14:51]}  g6 {[%clk 0:12:35]} 8. Nf3 {[%clk 0:15:14]}  Nxe4 {[%clk 0:12:35]} 9. Qd4 {[%clk 0:15:14]}  Nf6 {[%clk 0:12:35]} 10. O-O {[%clk 0:15:14]}  d5 {[%clk 0:12:35]} 11. Bg5 {[%clk 0:15:14]}  Bg7 {[%clk 0:12:06]} 12. Rfe1+ {[%clk 0:09:36]}  Be6 {[%clk 0:12:13]} 13. Ba6 {[%clk 0:09:36]}  h6 {[%clk 0:12:13]} 14. Bf4 {[%clk 0:09:36]}  O-O {[%clk 0:11:33]} 15. Bb7 {[%clk 0:08:49]}  Ne4 {[%clk 0:10:46]} 16. Be5 {[%clk 0:07:54]}  c5 {[%clk 0:10:46]} 17. Qa4 {[%clk 0:08:03]}  Rb8 {[%clk 0:08:08]} 18. Bxg7 {[%clk 0:08:03]}  Kxg7 {[%clk 0:08:08]} 19. Qxa7 {[%clk 0:08:03]}  c6 {[%clk 0:07:31]} 20. Bxc6 {[%clk 0:05:26]}  Rxb2 {[%clk 0:07:31]} 21. c4 {[%clk 0:04:26]}  Qf6 {[%clk 0:00:48]} 22. cxd5 {[%clk 0:04:26]}  Bf5 {[%clk 0:00:48]} 23. d6 {[%clk 0:04:26]}  Nxd6 {[%clk 0:00:48]} 24. Qxc5 {[%clk 0:02:04]}  Rc2 {[%clk 0:01:01]} 25. Qd5 {[%clk 0:02:04]}  Be4 {[%clk 0:01:01]} 26. Qd4 {[%clk 0:02:04]}  Bxc6 {[%clk 0:01:10]} 27. Qxf6+ {[%clk 0:00:38]}  Kxf6 {[%clk 0:01:10]} 28. Ne5 {[%clk 0:00:38]}  Re8 {[%clk 0:01:10]} 29. Ng4+ {[%clk 0:00:38]}  Kg7 {[%clk 0:01:10]} 30. Rxe8 {[%clk 0:00:38]}  Bxe8 {[%clk 0:01:10]} 31. Ne3 {[%clk 0:00:38]}  Rc5 {[%clk 0:01:10]} 32. h3 {[%clk 0:00:38]}  Nf5 {[%clk 0:01:48]} 33. Nf1 {[%clk 0:01:30]}  Bb5 {[%clk 0:01:48]} 34. Nd2 {[%clk 0:01:30]}  Rc2 {[%clk 0:01:48]} 35. Nf3 {[%clk 0:01:30]}  Bc6 {[%clk 0:01:48]} 36. Ne5 {[%clk 0:01:30]}  Rc5 {[%clk 0:01:48]} 37. Nd3 {[%clk 0:01:30]}  Ra5 {[%clk 0:01:48]} 38. Nb4 {[%clk 0:01:30]}  Bd7 {[%clk 0:01:48]} 39. Rd1 {[%clk 0:01:30]}  Be6 {[%clk 0:01:48]} 40. Rd2 {[%clk 0:01:30]}  Ra4 {[%clk 0:01:48]} 41. Rb2 {[%clk 0:01:30]}  h5 {[%clk 0:01:48]} 42. Kh2 {[%clk 0:01:30]}  Nd6 {[%clk 0:01:48]} 43. Kg1 {[%clk 0:01:30]}  Ne4 {[%clk 0:01:48]} 44. f3 {[%clk 0:01:30]}  Nc3 {[%clk 0:01:48]} 45. Kh2 {[%clk 0:01:30]}  h4 {[%clk 0:01:48]} 46. Nd3 {[%clk 0:01:30]}  Rxa2 {[%clk 0:02:08]} 47. Rb4 {[%clk 0:01:55]}  Ra4 {[%clk 0:02:08]} 48. Rb7 {[%clk 0:01:55]}  Rc4 {[%clk 0:02:08]} 49. Nf2 {[%clk 0:01:55]}  Ne2 {[%clk 0:02:08]} 50. Ne4 {[%clk 0:01:55]}  Bd5 {[%clk 0:02:08]} 51. Nd6 {[%clk 0:01:55]}  Bxb7 {[%clk 0:02:08]} 52. Nxc4 {[%clk 0:01:55]}  Nf4 {[%clk 0:02:08]} 0-1


[Site "http://www.Chess.com"]

[Event "FIDE World Rapid Chess Championship 2021"]
[White "Chigaev, Maksim"]
[Black "Fedoseev, Vladimir"]
[WhiteFideId "4108116"]
[BlackFideId "24130737"]
[WhiteElo "2605"]
[BlackElo "2692"]
[Result "0-1"]
[Round "10"]
[TimeControl "900+10"]
[Date "2021.12.28"]
[WhiteClock "0:00:20"]
[BlackClock "0:01:02"]

1. d4 {[%clk 0:15:00]}  Nf6 {[%clk 0:15:42]} 2. c4 {[%clk 0:15:25]}  c5 {[%clk 0:15:42]} 3. d5 {[%clk 0:15:25]}  e6 {[%clk 0:15:42]} 4. Nc3 {[%clk 0:15:25]}  exd5 {[%clk 0:15:42]} 5. cxd5 {[%clk 0:15:25]}  d6 {[%clk 0:15:42]} 6. e4 {[%clk 0:15:25]}  g6 {[%clk 0:15:42]} 7. f4 {[%clk 0:15:25]}  Bg7 {[%clk 0:15:42]} 8. Bb5+ {[%clk 0:15:25]}  Nfd7 {[%clk 0:15:42]} 9. Nf3 {[%clk 0:15:25]}  O-O {[%clk 0:15:42]} 10. O-O {[%clk 0:15:25]}  a6 {[%clk 0:15:42]} 11. Bd3 {[%clk 0:15:25]}  b5 {[%clk 0:15:42]} 12. f5 {[%clk 0:14:36]}  Ne5 {[%clk 0:14:58]} 13. Nxe5 {[%clk 0:14:36]}  Bxe5 {[%clk 0:14:58]} 14. Bf4 {[%clk 0:14:36]}  Nd7 {[%clk 0:14:58]} 15. Qd2 {[%clk 0:14:36]}  f6 {[%clk 0:09:39]} 16. Kh1 {[%clk 0:14:43]}  g5 {[%clk 0:09:39]} 17. Be3 {[%clk 0:14:43]}  Nb6 {[%clk 0:09:23]} 18. a3 {[%clk 0:09:40]}  Bd7 {[%clk 0:09:23]} 19. Rab1 {[%clk 0:09:40]}  Qe7 {[%clk 0:09:23]} 20. Rfc1 {[%clk 0:08:05]}  Nc4 {[%clk 0:07:53]} 21. Bxc4 {[%clk 0:05:27]}  bxc4 {[%clk 0:07:45]} 22. Nd1 {[%clk 0:05:27]}  Rab8 {[%clk 0:07:45]} 23. Rxc4 {[%clk 0:03:18]}  Rb3 {[%clk 0:07:51]} 24. Qc2 {[%clk 0:03:18]}  Rfb8 {[%clk 0:07:51]} 25. Bd2 {[%clk 0:03:18]}  Qe8 {[%clk 0:07:51]} 26. Bc3 {[%clk 0:03:18]}  a5 {[%clk 0:07:51]} 27. Rc1 {[%clk 0:02:37]}  a4 {[%clk 0:06:44]} 28. Bxe5 {[%clk 0:02:37]}  Qxe5 {[%clk 0:06:47]} 29. Qd2 {[%clk 0:00:39]}  Qe7 {[%clk 0:06:47]} 30. h3 {[%clk 0:00:15]}  Qe8 {[%clk 0:01:52]} 31. Ne3 {[%clk 0:00:15]}  h5 {[%clk 0:01:52]} 32. Nd1 {[%clk 0:00:15]}  Kg7 {[%clk 0:01:52]} 33. R1c3 {[%clk 0:00:15]}  R3b7 {[%clk 0:01:52]} 34. Re3 {[%clk 0:00:15]}  Qe5 {[%clk 0:02:27]} 35. Rcc3 {[%clk 0:00:15]}  Be8 {[%clk 0:02:27]} 36. Qc2 {[%clk 0:00:15]}  h4 {[%clk 0:02:27]} 37. Qc1 {[%clk 0:00:15]}  Bh5 {[%clk 0:02:27]} 38. Nf2 {[%clk 0:00:15]}  Qd4 {[%clk 0:02:27]} 39. e5 {[%clk 0:00:15]}  Rxb2 {[%clk 0:02:27]} 40. exf6+ {[%clk 0:00:15]}  Kh6 {[%clk 0:02:27]} 41. Qe1 {[%clk 0:00:15]}  Rxf2 {[%clk 0:02:27]} 42. f7 {[%clk 0:00:15]}  Rxf5 {[%clk 0:01:02]} 43. Rcd3 {[%clk 0:00:20]}  Qf4 {[%clk 0:01:02]} 44. Rf3 {[%clk 0:00:20]}  Bxf3 {[%clk 0:01:02]} 45. Rxf3 {[%clk 0:00:20]}  Qe5 {[%clk 0:01:02]} 0-1


[Site "http://www.Chess.com"]

[Event "FIDE World Rapid Chess Championship 2021"]
[White "Mitrabha, Guha"]
[Black "Onyshchuk, Volodymyr"]
[WhiteFideId "5057000"]
[BlackFideId "14114038"]
[WhiteElo "2107"]
[BlackElo "2687"]
[Result "1-0"]
[Round "10"]
[TimeControl "900+10"]
[Date "2021.12.28"]
[WhiteClock "0:02:17"]
[BlackClock "0:00:57"]

1. d4 {[%clk 0:15:00]}  d6 {[%clk 0:15:00]} 2. Nf3 {[%clk 0:15:00]}  g6 {[%clk 0:15:00]} 3. g3 {[%clk 0:15:00]}  Bg7 {[%clk 0:15:00]} 4. Bg2 {[%clk 0:16:45]}  Nf6 {[%clk 0:16:42]} 5. O-O {[%clk 0:16:45]}  O-O {[%clk 0:16:42]} 6. c4 {[%clk 0:16:45]}  Nc6 {[%clk 0:16:42]} 7. Nc3 {[%clk 0:16:45]}  e5 {[%clk 0:16:42]} 8. dxe5 {[%clk 0:16:45]}  dxe5 {[%clk 0:16:42]} 9. Bg5 {[%clk 0:16:45]}  h6 {[%clk 0:16:42]} 10. Qxd8 {[%clk 0:16:45]}  Rxd8 {[%clk 0:16:42]} 11. Bxf6 {[%clk 0:16:45]}  Bxf6 {[%clk 0:16:42]} 12. Nd5 {[%clk 0:16:45]}  Kg7 {[%clk 0:16:42]} 13. Nxc7 {[%clk 0:16:45]}  Rb8 {[%clk 0:16:42]} 14. e4 {[%clk 0:16:45]}  Be7 {[%clk 0:16:42]} 15. Rfd1 {[%clk 0:16:45]}  Be6 {[%clk 0:16:42]} 16. Nd5 {[%clk 0:16:45]}  Bc5 {[%clk 0:16:42]} 17. Rd2 {[%clk 0:16:45]}  a5 {[%clk 0:16:42]} 18. Rad1 {[%clk 0:16:45]}  Rbc8 {[%clk 0:16:42]} 19. Bf1 {[%clk 0:16:45]}  Bg4 {[%clk 0:15:08]} 20. Be2 {[%clk 0:16:39]}  Bxf3 {[%clk 0:15:08]} 21. Bxf3 {[%clk 0:16:39]}  Nd4 {[%clk 0:15:08]} 22. Rd3 {[%clk 0:16:39]}  h5 {[%clk 0:15:08]} 23. Kg2 {[%clk 0:16:39]}  Rc6 {[%clk 0:15:08]} 24. Rc1 {[%clk 0:16:39]}  Rdc8 {[%clk 0:13:36]} 25. a3 {[%clk 0:16:31]}  a4 {[%clk 0:13:36]} 26. Bd1 {[%clk 0:15:34]}  Ra6 {[%clk 0:13:36]} 27. h4 {[%clk 0:15:29]}  Ne6 {[%clk 0:09:19]} 28. Nc3 {[%clk 0:13:46]}  Rca8 {[%clk 0:08:50]} 29. Rd5 {[%clk 0:08:10]}  Bd4 {[%clk 0:08:04]} 30. Nb5 {[%clk 0:08:10]}  Rb6 {[%clk 0:08:04]} 31. Rc2 {[%clk 0:07:13]}  Rc8 {[%clk 0:07:12]} 32. f4 {[%clk 0:04:30]}  Be3 {[%clk 0:06:08]} 33. Rxe5 {[%clk 0:04:30]}  Nd4 {[%clk 0:06:08]} 34. Nxd4 {[%clk 0:03:52]}  Bxd4 {[%clk 0:02:01]} 35. Rd5 {[%clk 0:03:52]}  Bxb2 {[%clk 0:02:01]} 36. c5 {[%clk 0:03:52]}  Rb3 {[%clk 0:02:01]} 37. Rcd2 {[%clk 0:03:52]}  Bc3 {[%clk 0:00:55]} 38. Bxb3 {[%clk 0:03:14]}  Bxd2 {[%clk 0:00:55]} 39. Bxa4 {[%clk 0:02:17]}  Bc1 {[%clk 0:00:57]} 40. Rd7 {[%clk 0:02:17]}  Bxa3 {[%clk 0:00:57]} 41. Bb3 {[%clk 0:02:17]}  Rf8 {[%clk 0:00:57]} 42. Rc7 {[%clk 0:02:17]}  Kh6 {[%clk 0:00:57]} 43. Bxf7 {[%clk 0:02:17]}  Bxc5 {[%clk 0:00:57]} 44. Bxg6 {[%clk 0:02:17]}  Bd6 {[%clk 0:00:57]} 45. Rd7 {[%clk 0:02:17]} 1-0


[Site "http://www.Chess.com"]

[Event "FIDE World Rapid Chess Championship 2021"]
[White "Gukesh, D"]
[Black "Gelfand, Boris"]
[WhiteFideId "46616543"]
[BlackFideId "2805677"]
[WhiteElo "2050"]
[BlackElo "2648"]
[Result "1-0"]
[Round "10"]
[TimeControl "900+10"]
[Date "2021.12.28"]
[WhiteClock "0:00:16"]
[BlackClock "0:00:22"]

1. d4 {[%clk 0:15:00]}  Nf6 {[%clk 0:15:00]} 2. c4 {[%clk 0:15:00]}  e6 {[%clk 0:15:00]} 3. Nf3 {[%clk 0:15:03]}  d5 {[%clk 0:15:53]} 4. Nc3 {[%clk 0:15:03]}  c6 {[%clk 0:15:53]} 5. Bg5 {[%clk 0:15:03]}  h6 {[%clk 0:15:53]} 6. Bxf6 {[%clk 0:15:03]}  Qxf6 {[%clk 0:15:53]} 7. e3 {[%clk 0:15:03]}  g6 {[%clk 0:15:53]} 8. Be2 {[%clk 0:15:03]}  Bg7 {[%clk 0:15:53]} 9. e4 {[%clk 0:15:03]}  O-O {[%clk 0:15:53]} 10. O-O {[%clk 0:15:03]}  Rd8 {[%clk 0:15:06]} 11. Qc2 {[%clk 0:13:48]}  Qe7 {[%clk 0:15:06]} 12. Rad1 {[%clk 0:13:48]}  dxc4 {[%clk 0:13:25]} 13. Bxc4 {[%clk 0:12:24]}  Nd7 {[%clk 0:13:25]} 14. h3 {[%clk 0:09:51]}  b5 {[%clk 0:12:42]} 15. Bb3 {[%clk 0:09:51]}  Bb7 {[%clk 0:12:42]} 16. d5 {[%clk 0:09:51]}  Nc5 {[%clk 0:12:19]} 17. dxe6 {[%clk 0:08:40]}  Nxe6 {[%clk 0:09:36]} 18. a3 {[%clk 0:08:40]}  a6 {[%clk 0:09:45]} 19. Ne2 {[%clk 0:06:14]}  Nc5 {[%clk 0:09:45]} 20. Ba2 {[%clk 0:06:14]}  Nxe4 {[%clk 0:07:25]} 21. Nf4 {[%clk 0:05:39]}  Ng5 {[%clk 0:04:23]} 22. Nxg5 {[%clk 0:05:37]}  Qxg5 {[%clk 0:04:23]} 23. Nxg6 {[%clk 0:03:04]}  c5 {[%clk 0:04:23]} 24. f4 {[%clk 0:03:04]}  Qf6 {[%clk 0:04:23]} 25. Ne5 {[%clk 0:03:04]}  c4 {[%clk 0:04:23]} 26. Bb1 {[%clk 0:03:04]}  Rxd1 {[%clk 0:03:26]} 27. Rxd1 {[%clk 0:03:38]}  Rd8 {[%clk 0:03:26]} 28. Rd7 {[%clk 0:00:40]}  Bd5 {[%clk 0:00:28]} 29. Kh1 {[%clk 0:00:40]}  Be6 {[%clk 0:00:28]} 30. Ra7 {[%clk 0:00:40]}  Kf8 {[%clk 0:00:28]} 31. Qe4 {[%clk 0:00:16]}  Qh4 {[%clk 0:00:22]} 32. Kh2 {[%clk 0:00:16]}  Qf2 {[%clk 0:00:22]} 33. Rc7 {[%clk 0:00:16]}  Qxb2 {[%clk 0:00:22]} 34. Nxf7 {[%clk 0:00:16]}  Qd4 {[%clk 0:00:22]} 35. Nxd8 {[%clk 0:00:16]} 1-0


[Site "http://www.Chess.com"]

[Event "FIDE World Rapid Chess Championship 2021"]
[White "Alekseenko, Kirill"]
[Black "Gareyev, Timur"]
[WhiteFideId "4135539"]
[BlackFideId "14200937"]
[WhiteElo "2637"]
[BlackElo "2578"]
[Result "1-0"]
[Round "10"]
[TimeControl "900+10"]
[Date "2021.12.28"]
[WhiteClock "0:00:14"]
[BlackClock "0:00:22"]

1. e4 {[%clk 0:15:00]}  e5 {[%clk 0:14:00]} 2. Nf3 {[%clk 0:15:09]}  Nc6 {[%clk 0:14:00]} 3. Bc4 {[%clk 0:15:09]}  Nf6 {[%clk 0:14:00]} 4. d3 {[%clk 0:15:09]}  h6 {[%clk 0:14:00]} 5. O-O {[%clk 0:15:09]}  d6 {[%clk 0:14:00]} 6. a4 {[%clk 0:15:09]}  a5 {[%clk 0:14:00]} 7. c3 {[%clk 0:13:20]}  g5 {[%clk 0:13:35]} 8. Na3 {[%clk 0:13:20]}  Bg7 {[%clk 0:13:35]} 9. Nc2 {[%clk 0:13:20]}  O-O {[%clk 0:13:35]} 10. Ne3 {[%clk 0:13:20]}  Ne7 {[%clk 0:13:35]} 11. Qc2 {[%clk 0:13:10]}  c6 {[%clk 0:11:44]} 12. Bb3 {[%clk 0:13:10]}  Ng6 {[%clk 0:11:13]} 13. d4 {[%clk 0:08:39]}  g4 {[%clk 0:11:13]} 14. Ne1 {[%clk 0:08:39]}  Be6 {[%clk 0:11:13]} 15. dxe5 {[%clk 0:08:39]}  Nxe5 {[%clk 0:11:13]} 16. Nf5 {[%clk 0:07:39]}  Bxb3 {[%clk 0:06:36]} 17. Qxb3 {[%clk 0:07:39]}  Nxe4 {[%clk 0:06:36]} 18. Nxh6+ {[%clk 0:07:39]}  Bxh6 {[%clk 0:06:36]} 19. Bxh6 {[%clk 0:07:39]}  Re8 {[%clk 0:06:36]} 20. f3 {[%clk 0:06:27]}  Qh4 {[%clk 0:06:04]} 21. Be3 {[%clk 0:06:27]}  g3 {[%clk 0:06:04]} 22. h3 {[%clk 0:05:40]}  Nf6 {[%clk 0:04:37]} 23. f4 {[%clk 0:05:40]}  Nd3 {[%clk 0:04:37]} 24. Nf3 {[%clk 0:03:58]}  Qh5 {[%clk 0:03:58]} 25. Qxb7 {[%clk 0:01:29]}  Rab8 {[%clk 0:04:02]} 26. Qa7 {[%clk 0:01:29]}  Rxb2 {[%clk 0:03:50]} 27. Rab1 {[%clk 0:01:29]}  Re2 {[%clk 0:02:26]} 28. Rb8 {[%clk 0:00:46]}  c5 {[%clk 0:02:26]} 29. Rxe8+ {[%clk 0:00:46]}  Nxe8 {[%clk 0:02:26]} 30. Qe7 {[%clk 0:00:46]}  f5 {[%clk 0:00:33]} 31. Ng5 {[%clk 0:00:58]}  Nxf4 {[%clk 0:00:33]} 32. Kh1 {[%clk 0:00:14]}  c4 {[%clk 0:00:22]} 33. Rb1 {[%clk 0:00:14]}  d5 {[%clk 0:00:22]} 34. Qe5 {[%clk 0:00:14]}  Rb2 {[%clk 0:00:22]} 35. Rxb2 {[%clk 0:00:14]}  Nd3 {[%clk 0:00:22]} 36. Qe6+ {[%clk 0:00:14]}  Kf8 {[%clk 0:00:22]} 37. Qxf5+ {[%clk 0:00:14]}  Kg8 {[%clk 0:00:22]} 38. Qxd5+ {[%clk 0:00:14]} 1-0


[Site "http://www.Chess.com"]